{"text_format":"1","workbook":"xlsx","n_sheets":6,"sheets":["表紙","自己採点シート","学習自己点検シート ","単位修得状況確認表（共通教育科目，外国人留学生）","単位修得状況確認表（専門教育科目）","累積グラフ"],"not_rendered":{"charts":7,"images":2,"macros":1,"external_links":0,"defined_names":5,"comments":0,"pivot_tables":0},"unopened":[],"bounds":{"document_bytes":16777216,"sheet_cells":100000,"rows_first":2000,"rows_last":500,"rows_between":2000,"halvings":0,"cell_chars":16384,"cell_head_chars":4096},"cells_cut":0,"cells_raw":0,"read":"whole","date_system":"1900"}

{"sheet":"表紙","index":0,"n_rows":34,"n_cols":2,"rows_kept":34,"cut":false,"hidden":false,"merged":[]}
[]
[]
[]
[]
[]
[]
[]
[]
[]
[]
[]
[null,"鹿児島大学工学部ポートフォリオ"]
[]
[]
[]
[]
[]
[]
[]
[]
[]
[]
[]
[]
[]
[]
[]
[]
[]
[]
[null,"入学年度：平成30年度"]
[null,"学科：電気電子工学科"]
[null,"氏名："]
[null,"学籍番号："]

{"sheet":"自己採点シート","index":1,"n_rows":22,"n_cols":21,"rows_kept":22,"cut":false,"hidden":false,"merged":[[12,2,12,5],[3,10,3,11],[3,19,3,20],[9,2,9,5],[10,2,10,5],[11,2,11,5],[19,2,19,5],[20,2,20,5],[21,2,21,5],[13,2,13,5],[14,2,14,5],[15,2,15,5],[16,2,16,5],[17,2,17,5],[18,2,18,5]]}
[]
[null,"自己採点シート"]
[]
[null,null,null,null,null,null,null,null,null,"学籍番号",null,null,null,null,null,null,null,null,"氏名"]
[]
[null,"■学生のみなさんへ"]
[null,null,"今期受講した科目に関して、以下の項目に対して自己採点をしてください。(１０点満点)"]
[]
[]
[null,null,"項目",null,null,null,"2018年度\n前期","2018年度\n後期","2019年度\n前期","2019年度\n後期","2020年度\n前期","2020年度\n後期","2019年度\n前期","2019年度\n後期","2020年度\n前期","2020年度\n後期","2020年度\n前期","2020年度\n後期","2021年度\n前期","2021年度\n後期","卒業時"]
[null,1,"工学に関しての基礎知識\n（物理・化学・数学・情報など）"]
[null,2,"各工学分野での基礎知識\n（専門科目など）"]
[null,3,"人前での発表能力"]
[null,4,"人と話し合ったり議論する能力"]
[null,5,"チームの一員として取り組める（チームワーク）能力"]
[null,6,"英語、その他外国語による表現力"]
[null,7,"読書、講習会への参加、英会話や情報処理学習など大学以外での学習による自己啓発・生涯学習能力"]
[null,8,"社会性や国際感覚が身についているか。"]
[null,9,"倫理観、責任感が身についているか。"]
[null,10]
[null,11]
[null,12]

{"sheet":"学習自己点検シート ","index":2,"n_rows":68,"n_cols":13,"rows_kept":68,"cut":false,"hidden":false,"merged":[[4,8,4,9],[4,11,4,12],[7,2,7,12]]}
[]
[null,null,null,null,null,null,null,null,null,null,null,"年度","期"]
[null,"学習自己点検シート"]
[]
[null,null,null,null,null,null,null,"学籍番号",null,null,"氏名"]
[]
[null,"■学生のみなさんへ"]
[null,null,"学生生活全般に関して自己点検をお願いしています。今期受講した科目に関して、以下の質問項目に答えてください。面談時、指導教員（アドバイザー）の先生方から回答に対する具体的なアドバイスを受けてください。"]
[]
[]
[null,"■回答項目"]
[]
[null,1,"今期の目標は達成できましたか。"]
[]
[]
[]
[]
[null,2,"講義への取り組みは積極的でしたか。また、積極的に取り組むことができなかった講義は具体的に何ですか。"]
[]
[]
[]
[]
[null,3,"講義毎に勉強方法がつかめていますか。"]
[]
[]
[]
[]
[null,4,"それぞれの講義の理解度は自分の目標に達していますか。理解度が足りないと感じている講義は何ですか。"]
[]
[]
[]
[]
[null,5,"平日（試験勉強以外）１日当たりの勉強時間（平均）はどのくらいですか。勉強時間が足りないと感じている講義は何ですか。"]
[]
[]
[]
[]
[null,6,"アルバイトと勉強は両立できましたか。"]
[]
[]
[]
[]
[null,7,"サークル活動と勉強は両立できましたか。"]
[]
[]
[]
[]
[null,8,"卒業後の進路についてどのように考えていますか。"]
[]
[]
[]
[]
[null,9,"その他、アドバイスが必要なことはありますか。"]
[]
[]
[]
[]
[null,10]
[]
[]
[]
[]
[null,11]
[]
[]
[]
[]
[null,12]

{"sheet":"単位修得状況確認表（共通教育科目，外国人留学生）","index":3,"n_rows":37,"n_cols":49,"rows_kept":37,"cut":false,"hidden":false,"merged":[[1,0,1,41],[2,0,5,6],[2,7,2,38],[2,39,5,39],[2,40,5,40],[2,41,5,41],[4,7,4,8],[4,9,4,10],[4,11,4,12],[4,13,4,14],[4,37,4,38],[4,15,4,16],[3,7,3,10],[3,11,3,14],[3,15,3,18],[3,19,3,22],[3,23,3,26],[21,40,22,40],[4,35,4,36],[4,27,4,28],[4,29,4,30],[4,31,4,32],[4,33,4,34],[3,27,3,30],[3,31,3,34],[3,35,3,38],[6,0,16,0],[6,1,11,3],[9,4,10,4],[12,1,13,3],[4,25,4,26],[14,1,15,3],[4,17,4,18],[4,19,4,20],[4,21,4,22],[4,23,4,24],[27,7,27,8],[27,9,27,10],[27,11,27,12],[27,13,27,14],[17,0,23,0],[17,1,20,3],[18,4,20,4],[21,1,22,3],[20,5,20,6],[24,0,24,6],[25,1,25,10],[27,0,27,6],[26,39,26,40],[27,37,27,38],[27,15,27,16],[27,17,27,18],[27,19,27,20],[27,21,27,22],[27,23,27,24],[27,25,27,26],[27,27,27,28],[27,29,27,30],[27,31,27,32],[27,33,27,34],[27,35,27,36],[28,27,28,28],[28,0,28,6],[28,7,28,8],[28,9,28,10],[28,11,28,12],[28,13,28,14],[28,15,28,16],[28,17,28,18],[28,19,28,20],[28,21,28,22],[28,23,28,24],[28,25,28,26],[28,29,28,30],[28,31,28,32],[28,33,28,34],[28,35,28,36],[28,37,28,38],[29,0,29,6],[29,7,29,8],[29,9,29,10],[29,11,29,12],[29,13,29,14],[29,15,29,16],[29,17,29,18],[29,19,29,20],[29,21,29,22],[29,23,29,24],[29,35,29,36],[29,37,29,38],[29,25,29,26],[29,27,29,28],[29,29,29,30],[29,31,29,32],[29,33,29,34]]}
[null,null,null,null,null,null,null,null,null,null,null,null,null,null,null,null,null,null,null,null,null,null,null,null,null,null,null,null,null,null,null,null,null,null,null,null,null,null,null,null,null,null,null,null,null,null,null,null,"A"]
["単位修得状況確認表（共通教育科目：外国人留学生）",null,null,null,null,null,null,null,null,null,null,null,null,null,null,null,null,null,null,null,null,null,null,null,null,null,null,null,null,null,null,null,null,null,null,null,null,null,null,null,null,null,null,null,null,null,null,null,"B"]
["　",null,null,null,null,null,null,"取得単位数およびGP",null,null,null,null,null,null,null,null,null,null,null,null,null,null,null,null,null,null,null,null,null,null,null,null,null,null,null,null,null,null,null,"取得単位数","要修得\n単位数","累積GP",null,null,"当該期修得単位の入力要領（共通教育科目）",null,null,null,"C"]
[null,null,null,null,null,null,null,"　年次",null,null,null,"　年次",null,null,null,"　年次",null,null,null,"　年次",null,null,null,"　年次",null,null,null,"　年次",null,null,null,"　年次",null,null,null,"　年次",null,null,null,null,null,null,null,null,"１．黄色枠に各科目(英語及び日本語科目の場合は",null,null,null,"D"]
[null,null,null,null,null,null,null,"１期",null,"２期",null,"３期",null,"４期",null,"５期",null,"６期",null,"７期",null,"８期",null,"９期",null,"10期",null,"11期",null,"12期",null,"13期",null,"14期",null,"15期",null,"16期",null,null,null,null,null,null,"　　修得した合計単位数)の修得単位数を記入する。",null,null,null,"F"]
[null,null,null,null,null,null,null,"単位","合計GP","単位","合計GP","単位","合計GP","単位","合計GP","単位","合計GP","単位","合計GP","単位","合計GP","単位","合計GP","単位","合計GP","単位","合計GP","単位","合計GP","単位","合計GP","単位","合計GP","単位","合計GP","単位","合計GP","単位","合計GP",null,null,null,null,null,"２．オレンジ枠に修得した必修科目・選択必修",null,null,null,"P"]
["必修科目","初年次教育科目",null,null,"初年次セミナーⅠ",null,null,null,null,null,null,null,null,null,null,null,null,null,null,null,null,null,null,null,null,null,null,null,null,null,null,null,null,null,null,null,null,null,null,{"$f":"SUM(H7,J7,L7,N7,P7,R7,T7,V7,X7,Z7,AB7,AD7,AF7,AH7,AJ7,AL7)","v":0},2,null,null,null,"　　科目それぞれの合計単位数を記入する。"]
[null,null,null,null,"初年次セミナーⅡ",null,null,null,null,null,null,null,null,null,null,null,null,null,null,null,null,null,null,null,null,null,null,null,null,null,null,null,null,null,null,null,null,null,null,{"$f":"SUM(H8,J8,L8,N8,P8,R8,T8,V8,X8,Z8,AB8,AD8,AF8,AH8,AJ8,AL8)","v":0},"－",null,null,null,"３．灰色枠に受講科目の合計GP（単位数×GP）"]
[null,null,null,null,"大学と地域",null,null,null,null,null,null,null,null,null,null,null,null,null,null,null,null,null,null,null,null,null,null,null,null,null,null,null,null,null,null,null,null,null,null,0,2,null,null,null,"　　を計算し、その値を入力する。"]
[null,null,null,null,"体育・健康","理論",null,null,null,null,null,null,null,null,null,null,null,null,null,null,null,null,null,null,null,null,null,null,null,null,null,null,null,null,null,null,null,null,null,0,1,null,null,null,"　（評価とGPの関係：A=4,B=3,C=2,D=1,F=0,Pは"]
[null,null,null,null,null,"実習",null,null,null,null,null,null,null,null,null,null,null,null,null,null,null,null,null,null,null,null,null,null,null,null,null,null,null,null,null,null,null,null,null,0,1,null,null,null,"　　GPの該当外なので合計GP欄は空欄とする。）"]
[null,null,null,null,"情報活用",null,null,null,null,null,null,null,null,null,null,null,null,null,null,null,null,null,null,null,null,null,null,null,null,null,null,null,null,null,null,null,null,null,null,0,2,null,null,null,"４．取得単位数を要修得単位数と比較して、"]
[null,"ｸﾞﾛｰﾊﾞﾙ教育科目",null,null,"英語",null,null,null,null,null,null,null,null,null,null,null,null,null,null,null,null,null,null,null,null,null,null,null,null,null,null,null,null,null,null,null,null,null,null,0,6,null,null,null,"　　単位取得状況を把握する。"]
[null,null,null,null,"異文化理解",null,null,null,null,null,null,null,null,null,null,null,null,null,null,null,null,null,null,null,null,null,null,null,null,null,null,null,null,null,null,null,null,null,null,0,2]
[null,"日本語・日本事情科目",null,null,"日本語",null,null,null,null,null,null,null,null,null,null,null,null,null,null,null,null,null,null,null,null,null,null,null,null,null,null,null,null,null,null,null,null,null,null,0,4,null,null,null,"※期をまたがって開講される科目は、成績の出"]
[null,null,null,null,"日本事情",null,null,null,null,null,null,null,null,null,null,null,null,null,null,null,null,null,null,null,null,null,null,null,null,null,null,null,null,null,null,null,null,null,null,0,"(4)",null,null,null,"　された期に記入する。例えば通年の場合、後"]
[null,"必修科目　計",null,null,null,null,null,null,{"$f":"SUM(I7:I16)","v":0},null,{"$f":"SUM(K7:K16)","v":0},null,{"$f":"SUM(M7:M16)","v":0},null,{"$f":"SUM(O7:O16)","v":0},null,{"$f":"SUM(Q7:Q16)","v":0},null,{"$f":"SUM(S7:S16)","v":0},null,{"$f":"SUM(U7:U16)","v":0},null,{"$f":"SUM(W7:W16)","v":0},null,{"$f":"SUM(Y7:Y16)","v":0},null,{"$f":"SUM(AA7:AA16)","v":0},null,{"$f":"SUM(AC7:AC16)","v":0},null,{"$f":"SUM(AE7:AE16)","v":0},null,{"$f":"SUM(AG7:AG16)","v":0},null,{"$f":"SUM(AI7:AI16)","v":0},null,{"$f":"SUM(AK7:AK16)","v":0},null,{"$f":"SUM(AM7:AM16)","v":0},0,20,{"$f":"SUM(I17,K17,M17,O17,Q17,S17,U17,W17,Y17,AA17,AC17,AE17,AG17,AI17,AK17,AM17)","v":0},null,null,"　期に記入する。"]
["選択必修科目","教養教育科目",null,null,"人文・社会科学分野","選択科目",null,null,null,null,null,null,null,null,null,null,null,null,null,null,null,null,null,null,null,null,null,null,null,null,null,null,null,null,null,null,null,null,null,0,4,null,null,null,"※本表最下部の表の入力方法について"]
[null,null,null,null,"自然科学分野","実験科目",null,null,null,null,null,null,null,null,null,null,null,null,null,null,null,null,null,null,null,null,null,null,null,null,null,null,null,null,null,null,null,null,null,0,1,null,null,null,"　・P評価の単位数は、当該期①の欄に、"]
[null,null,null,null,null,"選択科目",null,null,null,null,null,null,null,null,null,null,null,null,null,null,null,null,null,null,null,null,null,null,null,null,null,null,null,null,null,null,null,null,null,0,2,null,null,null,"　・F評価の単位数は、当該期②の欄に、"]
[null,null,null,null,null,"基礎教育入門科目",null,null,null,null,null,null,null,null,null,null,null,null,null,null,null,null,null,null,null,null,null,null,null,null,null,null,null,null,null,null,null,null,null,0,2,null,null,null,"　・評価F科目の再履修での修得単位数は当該"]
[null,"教養活用科目",null,null,"統合Ⅰ（課題発見）",null,null,null,null,null,null,null,null,null,null,null,null,null,null,null,null,null,null,null,null,null,null,null,null,null,null,null,null,null,null,null,null,null,null,0,4,null,null,null,"　　期③の欄に入力する。なお、②には再履修"]
[null,null,null,null,"統合Ⅱ（課題解決）",null,null,null,null,null,null,null,null,null,null,null,null,null,null,null,null,null,null,null,null,null,null,null,null,null,null,null,null,null,null,null,null,null,null,0,null,null,null,null,"　　の科目は含まない。"]
[null,"選択必修科目　計",null,null,null,null,null,null,{"$f":"SUM(I18:I23)","v":0},null,{"$f":"SUM(K18:K23)","v":0},null,{"$f":"SUM(M18:M23)","v":0},null,{"$f":"SUM(O18:O23)","v":0},null,{"$f":"SUM(Q18:Q23)","v":0},null,{"$f":"SUM(S18:S23)","v":0},null,{"$f":"SUM(U18:U23)","v":0},null,{"$f":"SUM(W18:W23)","v":0},null,{"$f":"SUM(Y18:Y23)","v":0},null,{"$f":"SUM(AA18:AA23)","v":0},null,{"$f":"SUM(AC18:AC23)","v":0},null,{"$f":"SUM(AE18:AE23)","v":0},null,{"$f":"SUM(AG18:AG23)","v":0},null,{"$f":"SUM(AI18:AI23)","v":0},null,{"$f":"SUM(AK18:AK23)","v":0},null,{"$f":"SUM(AM18:AM23)","v":0},0,13,{"$f":"SUM(I24,K24,M24,O24,Q24,S24,U24,W24,Y24,AA24,AC24,AE24,AG24,AI24,AK24,AM24)","v":0},null,null,"※評価Fの科目を再履修して単位を修得した場合"]
["全科目合計",null,null,null,null,null,null,{"$f":"H17+H24","v":0},{"$f":"I17+I24","v":0},0,0,0,0,0,0,{"$f":"P17+P24","v":0},0,0,0,0,0,0,{"$f":"W17+W24","v":0},0,0,0,0,0,0,0,0,0,0,0,0,0,0,0,0,0,33,{"$f":"SUM(I25,K25,M25,O25,Q25,S25,U25,W25,Y25,AA25,AC25,AE25,AG25,AI25,AK25,AM25)","v":0},null,null,"　の入力方法について"]
["※","「期を増やす」欄により学年を４年間増やすことが可。",null,null,null,null,null,null,null,null,null,null,null,null,null,null,null,null,null,null,null,null,null,null,null,null,null,null,null,null,null,null,null,null,null,null,null,null,null,null,null,null,null,null,"　上記1～3の手順で入力する。"]
[null,null,null,null,null,null,null,null,null,null,null,null,null,null,null,null,null,null,null,null,null,null,null,null,null,null,null,null,null,null,null,null,null,null,null,null,null,null,null,null,null,null,null,null,"※既修得単位（D以上）の科目を再履修して単位を"]
["①【共通教育科目】評価Pの単位数",null,null,null,null,null,null,null,null,null,null,null,null,null,null,null,null,null,null,null,null,null,null,null,null,null,null,null,null,null,null,null,null,null,null,null,null,null,null,{"$f":"SUM(H28:AM28)","v":0},null,null,null,null,"　修得した場合の入力方法について"]
["②【共通教育科目】不合格（評価F）の単位数",null,null,null,null,null,null,null,null,null,null,null,null,null,null,null,null,null,null,null,null,null,null,null,null,null,null,null,null,null,null,null,null,null,null,null,null,null,null,{"$f":"SUM(H29:AM29)","v":0},null,null,null,null,"　今期の分を上記1～3の手順で入力した後、"]
["③【共通教育科目】評価F科目の再履修での修得単位数",null,null,null,null,null,null,null,null,null,null,null,null,null,null,null,null,null,null,null,null,null,null,null,null,null,null,null,null,null,null,null,null,null,null,null,null,null,null,{"$f":"SUM(H30:AM30)","v":0},null,null,null,null,"  過去の評価（黄色枠）と合計GP（灰色枠）"]
[null,null,null,null,null,null,null,null,null,null,null,null,null,null,null,null,null,null,null,null,null,null,null,null,null,null,null,null,null,null,null,null,null,null,null,null,null,null,null,null,null,null,null,null,"　を削除し、過去のオレンジ枠の合計修得単位数"]
[null,null,null,null,null,null,null,null,null,null,null,null,null,null,null,null,null,null,null,null,null,null,null,null,null,null,null,null,null,null,null,null,null,null,null,null,null,null,null,null,null,null,null,null,"　から今期再履修で修得した単位数を引いた値を"]
[null,null,null,null,null,null,null,null,null,null,null,null,null,null,null,null,null,null,null,null,null,null,null,null,null,null,null,null,null,null,null,null,null,null,null,null,null,null,null,null,null,null,null,null,"　過去のオレンジ枠の合計修得単位数に再入力する。"]
[]
[null,null,null,null,null,null,null,null,null,null,null,null,null,null,null,null,null,null,null,null,null,null,null,null,null,null,null,null,null,null,null,null,null,null,null,null,null,null,null,null,null,null,null,null,"（補足説明）"]
[null,null,null,null,null,null,null,null,null,null,null,null,null,null,null,null,null,null,null,null,null,null,null,null,null,null,null,null,null,null,null,null,null,null,null,null,null,null,null,null,null,null,null,null,"※留年した場合は「期を増やす」欄で列を増"]
[null,null,null,null,null,null,null,null,null,null,null,null,null,null,null,null,null,null,null,null,null,null,null,null,null,null,null,null,null,null,null,null,null,null,null,null,null,null,null,null,null,null,null,null,"　やす。"]

{"sheet":"単位修得状況確認表（専門教育科目）","index":4,"n_rows":84,"n_cols":51,"rows_kept":84,"cut":false,"hidden":false,"merged":[[82,33,82,34],[82,35,82,36],[82,37,82,38],[81,23,81,24],[81,19,81,20],[82,21,82,22],[82,27,82,28],[82,0,82,6],[82,7,82,8],[82,9,82,10],[82,11,82,12],[82,13,82,14],[82,15,82,16],[82,17,82,18],[82,19,82,20],[82,23,82,24],[82,29,82,30],[82,31,82,32],[82,25,82,26],[81,9,81,10],[81,11,81,12],[81,13,81,14],[81,15,81,16],[81,17,81,18],[1,0,1,41],[2,39,5,39],[3,7,3,10],[3,11,3,14],[3,15,3,18],[4,9,4,10],[4,11,4,12],[4,13,4,14],[2,41,5,41],[3,19,3,22],[4,25,4,26],[2,40,5,40],[4,21,4,22],[3,23,3,26],[4,35,4,36],[2,7,2,38],[4,37,4,38],[4,31,4,32],[4,33,4,34],[3,31,3,34],[3,35,3,38],[4,23,4,24],[3,27,3,30],[4,7,4,8],[81,37,81,38],[81,29,81,30],[81,31,81,32],[53,46,58,46],[79,1,79,10],[81,0,81,6],[79,39,79,40],[81,21,81,22],[77,0,77,6],[78,0,78,6],[81,7,81,8],[81,35,81,36],[81,33,81,34],[75,0,75,6],[81,25,81,26],[81,27,81,28],[72,44,74,44],[2,0,2,1],[5,0,5,1],[12,0,12,6],[41,0,74,0],[14,0,38,0],[59,1,64,1],[39,0,39,6],[6,50,7,50],[8,50,9,50],[4,27,4,28],[4,29,4,30],[4,15,4,16],[4,17,4,18],[4,19,4,20],[59,46,64,46],[65,46,74,46],[6,46,38,46],[41,46,46,46],[47,46,52,46],[83,35,83,36],[83,37,83,38],[83,0,83,6],[83,7,83,8],[83,9,83,10],[83,11,83,12],[83,13,83,14],[83,15,83,16],[83,17,83,18],[83,19,83,20],[83,21,83,22],[83,23,83,24],[83,25,83,26],[83,27,83,28],[83,29,83,30],[83,31,83,32],[83,33,83,34]]}
[null,null,null,null,null,null,null,null,null,null,null,null,null,null,null,null,null,null,null,null,null,null,null,null,null,null,null,null,null,null,null,null,null,null,null,null,null,null,null,null,null,null,null,null,null,null,null,"A"]
["単位修得状況確認表（専門教育科目）",null,null,null,null,null,null,null,null,null,null,null,null,null,null,null,null,null,null,null,null,null,null,null,null,null,null,null,null,null,null,null,null,null,null,null,null,null,null,null,null,null,null,null,"受講科目の単位入力要領（専門教育科目）",null,null,"B"]
["区",null,"専","専","専","授","単","履修科目の評価およびGP",null,null,null,null,null,null,null,null,null,null,null,null,null,null,null,null,null,null,null,null,null,null,null,null,null,null,null,null,null,null,null,"取得単位数","要修得\n単位数","累積GP",null,null,"STEP１",null,null,"C"]
[null,null,"門","門","門","業"," ","　年次",null,null,null,"　年次",null,null,null,"　年次",null,null,null,"　年次",null,null,null,"　年次",null,null,null,"　年次",null,null,null,"　年次",null,null,null,"　年次",null,null,null,null,null,null,null,null,"当該期に受講した科目の単位を区分ごとに以下の手順で",null,null,"D"]
[null,null,"基","中","上","科",null,"１期",null,"２期",null,"３期",null,"４期",null,"５期",null,"６期",null,"７期",null,"８期",null,"９期",null,"10期",null,"11期",null,"12期",null,"13期",null,"14期",null,"15期",null,"16期",null,null,null,null,null,null,"入力し、要修得単位数と比較して単位取得状況を把握",null,null,"F"]
["分",null,"礎","級","級","目","位","評価","合計GP","評価","合計GP","評価","合計GP","評価","合計GP","評価","合計GP","評価","合計GP","評価","合計GP","評価","合計GP","評価","合計GP","評価","合計GP","評価","合計GP","評価","合計GP","評価","合計GP","評価","合計GP","評価","合計GP","評価","合計GP",null,null,null,null,null,"する。",null,null,"P"]
["基",null,null,null,null,"微分積分学ＡⅠ",2,null,null,null,null,null,null,null,null,null,null,null,null,null,null,null,null,null,null,null,null,null,null,null,null,null,null,null,null,null,null,null,null,null,null,null,null,null,null,null,"必修科目",250152111101,{"$f":"F7","v":"微分積分学ＡⅠ"},"「・」が入っているためヒットせず","フレッシュマンセミナーⅠ 250152111101"]
["礎","必",null,null,null,"線形代数学Ⅰ",2,null,null,null,null,null,null,null,null,null,null,null,null,null,null,null,null,null,null,null,null,null,null,null,null,null,null,null,null,null,null,null,null,null,null,null,null,null,"１．黄色枠に受講科目の評価（A,B,C,D,F,P）を入力する。",null,null,250222000001,"線形代数学Ⅰ"]
["教","修",null,null,null,"物理学基礎ＡⅠ",2,null,null,null,null,null,null,null,null,null,null,null,null,null,null,null,null,null,null,null,null,null,null,null,null,null,null,null,null,null,null,null,null,null,null,null,null,null,"２．オレンジ枠に合計修得単位数を入力する。",null,null,250152111102,"物理学基礎ＡⅠ","「・」が入っているためヒットせず","フレッシュマンセミナーⅡ 250152111102"]
["育","科",null,null,null,"微分積分学ＡⅡ",2,null,null,null,null,null,null,null,null,null,null,null,null,null,null,null,null,null,null,null,null,null,null,null,null,null,null,null,null,null,null,null,null,null,null,null,null,null,"３．灰色枠に受講科目の合計GP（単位数×GP）を計算し、",null,null,250222000010,"微分積分学ＡⅡ"]
["科","目",null,null,null,"線形代数学Ⅱ",2,null,null,null,null,null,null,null,null,null,null,null,null,null,null,null,null,null,null,null,null,null,null,null,null,null,null,null,null,null,null,null,null,null,null,null,null,null,"    その値を入力する。",null,null,250222001111,"線形代数学Ⅱ"]
["目",null,null,null,null,"物理学基礎ＡⅡ",2,null,null,null,null,null,null,null,null,null,null,null,null,null,null,null,null,null,null,null,null,null,null,null,null,null,null,null,null,null,null,null,null,null,null,null,null,null,"　（評価とGPの関係：A=4,B=3,C=2,D=1,F=0,PはGPの該当",null,null,250252733001,"物理学基礎ＡⅡ"]
["合計",null,null,null,null,null,null,null,{"$f":"SUM(I7:I12)","v":0},null,{"$f":"SUM(K7:K12)","v":0},null,{"$f":"SUM(M7:M12)","v":0},null,{"$f":"SUM(O7:O12)","v":0},null,{"$f":"SUM(Q7:Q12)","v":0},null,{"$f":"SUM(S7:S12)","v":0},null,{"$f":"SUM(U7:U12)","v":0},null,{"$f":"SUM(W7:W12)","v":0},null,{"$f":"SUM(Y7:Y12)","v":0},null,{"$f":"SUM(AA7:AA12)","v":0},null,{"$f":"SUM(AC7:AC12)","v":0},null,{"$f":"SUM(AE7:AE12)","v":0},null,{"$f":"SUM(AG7:AG12)","v":0},null,{"$f":"SUM(AI7:AI12)","v":0},null,{"$f":"SUM(AK7:AK12)","v":0},null,{"$f":"SUM(AM7:AM12)","v":0},{"$f":"SUM(H13,J13,L13,N13,P13,R13,T13,V13,X13,Z13,AB13,AD13,AF13,AH13,AJ13,AL13)","v":0},12,{"$f":"SUM(I13,K13,M13,O13,Q13,S13,U13,W13,Y13,AA13,AC13,AE13,AG13,AI13,AK13,AM13)","v":0},null,null,"　　外なので合計GP欄は空欄とする。）"]
[null,null,null,null,null,null,null,null,null,null,null,null,null,null,null,null,null,null,null,null,null,null,null,null,null,null,null,null,null,null,null,null,null,null,null,null,null,null,null,null,null,null,null,null,"４．修得単位数を要修得単位数と比較して単位取得状況"]
["専門科目"," ","○",null,null,"フレッシュマン・セミナー",1,null,null,null,null,null,null,null,null,null,null,null,null,null,null,null,null,null,null,null,null,null,null,null,null,null,null,null,null,null,null,null,null,null,null,null,null,null,"    を把握する。",null,null,259542247101,{"$f":"F15","v":"フレッシュマン・セミナー"}]
[null," ","○",null,null,"電気回路学Ⅰ及び演習 ",3,null,null,null,null,null,null,null,null,null,null,null,null,null,null,null,null,null,null,null,null,null,null,null,null,null,null,null,null,null,null,null,null,null,null,null,null,null,null,null,null,250222000303,"電気回路学Ⅰ及び演習 ","「ー」が異なるためヒットせず","コンピュ－タ工学 250222000303"]
[null," "," ","○",null,"電気回路学Ⅱ及び演習 ",3,null,null,null,null,null,null,null,null,null,null,null,null,null,null,null,null,null,null,null,null,null,null,null,null,null,null,null,null,null,null,null,null,null,null,null,null,null,"※期をまたがって開講される科目は、成績の出された期に",null,null,250152111105,"電気回路学Ⅱ及び演習 "]
[null,"必 ","○",null," ","応用数学Ⅰ及び演習 ",3,null,null,null,null,null,null,null,null,null,null,null,null,null,null,null,null,null,null,null,null,null,null,null,null,null,null,null,null,null,null,null,null,null,null,null,null,null,"  記入する。例えば通年の場合、後期に記入する。",null,null,250252733002,"応用数学Ⅰ及び演習 "]
[null," ","○",null,null,"電気磁気学Ⅰ及び演習 ",3,null,null,null,null,null,null,null,null,null,null,null,null,null,null,null,null,null,null,null,null,null,null,null,null,null,null,null,null,null,null,null,null,null,null,null,null,null,"※本表最下部の表の入力方法について",null,null,250222011001,"電気磁気学Ⅰ及び演習 "]
[null," ","○",null,null,"量　　子　　力　　学 ",2,null,null,null,null,null,null,null,null,null,null,null,null,null,null,null,null,null,null,null,null,null,null,null,null,null,null,null,null,null,null,null,null,null,null,null,null,null,"　・P評価の単位数は当該期①の欄に、",null,null,259752241109,"量　　子　　力　　学 "]
[null," ","○",null,null,"コンピュータ工学",2,null,null,null,null,null,null,null,null,null,null,null,null,null,null,null,null,null,null,null,null,null,null,null,null,null,null,null,null,null,null,null,null,null,null,null,null,null,"　・F評価の単位数は当該期②の欄に、",null,null,259752224106,"コンピュータ工学"]
[null," ",null,"○"," ","応用数学Ⅱ及び演習 ",3,null,null,null,null,null,null,null,null,null,null,null,null,null,null,null,null,null,null,null,null,null,null,null,null,null,null,null,null,null,null,null,null,null,null,null,null,null,"　・評価F科目の再履修での修得単位数は当該期③の欄に",null,null,259552247102,"応用数学Ⅱ及び演習 "]
[null,null," ","○",null,"電気磁気学Ⅱ及び演習 ",3,null,null,null,null,null,null,null,null,null,null,null,null,null,null,null,null,null,null,null,null,null,null,null,null,null,null,null,null,null,null,null,null,null,null,null,null,null,"　　入力する。なお、②には再履修の科目は含まない。",null,null,250222010011,"電気磁気学Ⅱ及び演習 "]
[null,"修 ","○",null,null,"アナログ電子回路 ",2,null,null,null,null,null,null,null,null,null,null,null,null,null,null,null,null,null,null,null,null,null,null,null,null,null,null,null,null,null,null,null,null,null,null,null,null,null,"※評価Fの科目を再履修して単位を修得した場合の入力方",null,null,259552227101,"アナログ電子回路 "]
[null,null,"○",null,null,"電子物性基礎",2,null,null,null,null,null,null,null,null,null,null,null,null,null,null,null,null,null,null,null,null,null,null,null,null,null,null,null,null,null,null,null,null,null,null,null,null,null,"  法について"]
[null," ","○",null,null,"電　気　機　器　学　Ⅰ ",2,null,null,null,null,null,null,null,null,null,null,null,null,null,null,null,null,null,null,null,null,null,null,null,null,null,null,null,null,null,null,null,null,null,null,null,null,null,"  上記１～３の手順で入力する。"]
[null,null,"○",null,null,"通　　信　　工　　学 ",2,null,null,null,null,null,null,null,null,null,null,null,null,null,null,null,null,null,null,null,null,null,null,null,null,null,null,null,null,null,null,null,null,null,null,null,null,null,"※既修得単位（D以上）の科目を再履修して単位を"]
[null," ",null,"○",null,"半　導　体　工　学 ",2,null,null,null,null,null,null,null,null,null,null,null,null,null,null,null,null,null,null,null,null,null,null,null,null,null,null,null,null,null,null,null,null,null,null,null,null,null,"　修得した場合の入力方法について"]
[null,null,"○",null,null,"電気エネルギー工学Ⅰ ",2,null,null,null,null,null,null,null,null,null,null,null,null,null,null,null,null,null,null,null,null,null,null,null,null,null,null,null,null,null,null,null,null,null,null,null,null,null,"　今期の分を上記1～3の手順で入力した後、"]
[null,"科 ","○",null,null,"制　御　工　学 ",2,null,null,null,null,null,null,null,null,null,null,null,null,null,null,null,null,null,null,null,null,null,null,null,null,null,null,null,null,null,null,null,null,null,null,null,null,null,"  過去の評価（黄色枠）と合計GP（灰色枠）"]
[null," ","○",null,null,"電気電子工学実験ⅠＡ",1,null,null,null,null,null,null,null,null,null,null,null,null,null,null,null,null,null,null,null,null,null,null,null,null,null,null,null,null,null,null,null,null,null,null,null,null,null,"　を削除し、過去のオレンジ枠の合計修得単位数"]
[null,null,"○",null,null,"電気電子工学実験ⅠＢ",1,null,null,null,null,null,null,null,null,null,null,null,null,null,null,null,null,null,null,null,null,null,null,null,null,null,null,null,null,null,null,null,null,null,null,null,null,null,"　から今期再履修で修得した単位数を引いた値を"]
[null,null," ","○",null,"電気電子工学実験Ⅱ ",2,null,null,null,null,null,null,null,null,null,null,null,null,null,null,null,null,null,null,null,null,null,null,null,null,null,null,null,null,null,null,null,null,null,null,null,null,null,"　過去のオレンジ枠の合計修得単位数に再入力する。"]
[null," "," ","○",null,"電気電子工学実験Ⅲ ",1]
[null," "," ","○",null,"エンジニアリング・デザイン実習 ",1,null,null,null,null,null,null,null,null,null,null,null,null,null,null,null,null,null,null,null,null,null,null,null,null,null,null,null,null,null,null,null,null,null,null,null,null,null,"STEP２"]
[null,"目 ","○",null,null,"工学基礎英語",2,null,null,null,null,null,null,null,null,null,null,null,null,null,null,null,null,null,null,null,null,null,null,null,null,null,null,null,null,null,null,null,null,null,null,null,null,null,"累積GPAの値を学業成績証明書と一致するかチェックする。"]
[null," ","○",null,null,"電気電子英語",2,null,null,null,null,null,null,null,null,null,null,null,null,null,null,null,null,null,null,null,null,null,null,null,null,null,null,null,null,null,null,null,null,null,null,null,null,null,"区分ごとの単位修得状況の入力が終了した後に、シート"]
[null," ","○",null,null,"工学倫理",2,null,null,null,null,null,null,null,null,null,null,null,null,null,null,null,null,null,null,null,null,null,null,null,null,null,null,null,null,null,null,null,null,null,null,null,null,null,"右下赤枠の「累積GPA」の値が、学業成績証明書に記載されて"]
[null," "," ",null,"○","卒　　業　　論　　文 ",6,null,null,null,null,null,null,null,null,null,null,null,null,null,null,null,null,null,null,null,null,null,null,null,null,null,null,null,null,null,null,null,null,null,null,null,null,null,"いる累積GPAの値と一致しているかチェックし、一致"]
["合計",null,null,null,null,null,null,null,{"$f":"SUM(I15:I39)","v":0},null,{"$f":"SUM(K15:K39)","v":0},null,{"$f":"SUM(M15:M39)","v":0},null,{"$f":"SUM(O15:O39)","v":0},null,{"$f":"SUM(Q15:Q39)","v":0},null,{"$f":"SUM(S15:S39)","v":0},null,{"$f":"SUM(U15:U39)","v":0},null,{"$f":"SUM(W15:W39)","v":0},null,{"$f":"SUM(Y15:Y39)","v":0},null,{"$f":"SUM(AA15:AA39)","v":0},null,{"$f":"SUM(AC15:AC39)","v":0},null,{"$f":"SUM(AE15:AE39)","v":0},null,{"$f":"SUM(AG15:AG39)","v":0},null,{"$f":"SUM(AI15:AI39)","v":0},null,{"$f":"SUM(AK15:AK39)","v":0},null,{"$f":"SUM(AM15:AM39)","v":0},{"$f":"SUM(H40,J40,L40,N40,P40,R40,T40,V40,X40,Z40,AB40,AD40,AF40,AH40,AJ40,AL40)","v":0},55,{"$f":"SUM(I40,K40,M40,O40,Q40,S40,U40,W40,Y40,AA40,AC40,AE40,AG40,AI40,AK40,AM40)","v":0},null,null,"していない場合はSTEP１に戻り、入力値に間違いが"]
[null,null,null,null,null,null,null,null,null,null,null,null,null,null,null,null,null,null,null,null,null,null,null,null,null,null,null,null,null,null,null,null,null,null,null,null,null,null,null,null,null,null,null,null,"ないか見直し、正しく入力する。"]
["専門科目","選","○",null," ","原子力・放射線と環境 ",2,null,null,null,null,null,null,null,null,null,null,null,null,null,null,null,null,null,null,null,null,null,null,null,null,null,null,null,null,null,null,null,null,null,null,null,null,null,null,null,"選択科目A群",250042099101,{"$f":"F42","v":"原子力・放射線と環境 "}]
[null,"択","○",null," ","生　産　工　学　論 ",2,null,null,null,null,null,null,null,null,null,null,null,null,null,null,null,null,null,null,null,null,null,null,null,null,null,null,null,null,null,null,null,null,null,null,null,null,null,"（補足説明）",null,null,250299200001,"生　産　工　学　論 "]
[null,"科","○",null," ","科　学　技　術　論 ",2,null,null,null,null,null,null,null,null,null,null,null,null,null,null,null,null,null,null,null,null,null,null,null,null,null,null,null,null,null,null,null,null,null,null,null,null,null,"※留年した場合は「期を増やす」欄で列を増やす。",null,null,250228100006,"科　学　技　術　論 "]
[null,"目","○",null," ","材　料　科　学　論 ",2,null,null,null,null,null,null,null,null,null,null,null,null,null,null,null,null,null,null,null,null,null,null,null,null,null,null,null,null,null,null,null,null,null,null,null,null,null,"※評価Pの科目については、GPおよびGPAの計算に含ま",null,null,250228100005,"材　料　科　学　論 "]
[null,"A","○",null," ","エネルギー工学論",2,null,null,null,null,null,null,null,null,null,null,null,null,null,null,null,null,null,null,null,null,null,null,null,null,null,null,null,null,null,null,null,null,null,null,null,null,null,"　ない。しかしながら、進級・卒業要件の累積単位数",null,null,250228100003,"エネルギー工学論"]
[null,"群","○",null," ","環境工学論",2,null,null,null,null,null,null,null,null,null,null,null,null,null,null,null,null,null,null,null,null,null,null,null,null,null,null,null,null,null,null,null,null,null,null,null,null,null,"　には含まれることがあるので、標準履修課程表で確認",null,null,250228100004,"環境工学論"]
[null,"選",null,"○",null,"量子物性工学",2,null,null,null,null,null,null,null,null,null,null,null,null,null,null,null,null,null,null,null,null,null,null,null,null,null,null,null,null,null,null,null,null,null,null,null,null,null,"　すること。（インターンシップ等）",null,"選択科目B群",259752213102,"量子物性工学"]
[null,"択",null,"○",null,"電気電子計測",2,null,null,null,null,null,null,null,null,null,null,null,null,null,null,null,null,null,null,null,null,null,null,null,null,null,null,null,null,null,null,null,null,null,null,null,null,null,"※随意科目については、GPおよびGPAの計算に含まれない。",null,null,250222010051,"電気電子計測"]
[null,"科",null,"○",null,"電　　気　　化　　学",2,null,null,null,null,null,null,null,null,null,null,null,null,null,null,null,null,null,null,null,null,null,null,null,null,null,null,null,null,null,null,null,null,null,null,null,null,null,"　また、進級・卒業要件にも含まれない。",null,null,259552227104,"電　　気　　化　　学"]
[null,"目",null,null,"○","電　気　磁　気　学　Ⅲ",2,null,null,null,null,null,null,null,null,null,null,null,null,null,null,null,null,null,null,null,null,null,null,null,null,null,null,null,null,null,null,null,null,null,null,null,null,null,"※コース選択必修科目（10単位以上）は、標準履修課程表",null,null,259752213101,"電　気　磁　気　学　Ⅲ"]
[null,"B",null,null,"○","電　子　材　料　工　学",2,null,null,null,null,null,null,null,null,null,null,null,null,null,null,null,null,null,null,null,null,null,null,null,null,null,null,null,null,null,null,null,null,null,null,null,null,null,"　で確認すること。",null,null,250222010061,"電　子　材　料　工　学"]
[null,null,null,null,"○","光エレクトロニクス",2,null,null,null,null,null,null,null,null,null,null,null,null,null,null,null,null,null,null,null,null,null,null,null,null,null,null,null,null,null,null,null,null,null,null,null,null,null,null,null,null,259852213107,"光エレクトロニクス"]
[null,"選",null,"○",null,"電　気　回　路　学　Ⅲ",2,null,null,null,null,null,null,null,null,null,null,null,null,null,null,null,null,null,null,null,null,null,null,null,null,null,null,null,null,null,null,null,null,null,null,null,null,null,null,null,"選択科目C群",259752224111,"電　気　回　路　学　Ⅲ"]
[null,"択",null,"○",null,"電　気　機　器　学　Ⅱ",2,null,null,null,null,null,null,null,null,null,null,null,null,null,null,null,null,null,null,null,null,null,null,null,null,null,null,null,null,null,null,null,null,null,null,null,null,null,null,null,null,259752224107,"電　気　機　器　学　Ⅱ"]
[null,"科",null,"○",null,"電気エネルギー工学Ⅱ",2,null,null,null,null,null,null,null,null,null,null,null,null,null,null,null,null,null,null,null,null,null,null,null,null,null,null,null,null,null,null,null,null,null,null,null,null,null,null,null,null,259552227107,"電気エネルギー工学Ⅱ"]
[null,"目",null,null,"○","パワーエレクトロニクス",2,null,null,null,null,null,null,null,null,null,null,null,null,null,null,null,null,null,null,null,null,null,null,null,null,null,null,null,null,null,null,null,null,null,null,null,null,null,null,null,null,259752224105,"パワーエレクトロニクス"]
[null,"C",null,null,"○","高電圧・プラズマ工学",2,null,null,null,null,null,null,null,null,null,null,null,null,null,null,null,null,null,null,null,null,null,null,null,null,null,null,null,null,null,null,null,null,null,null,null,null,null,null,null,null,259752224108,"高電圧・プラズマ工学"]
[null,"群",null,null,"○","システム制御工学",2,null,null,null,null,null,null,null,null,null,null,null,null,null,null,null,null,null,null,null,null,null,null,null,null,null,null,null,null,null,null,null,null,null,null,null,null,null,null,null,null,259752224102,"システム制御工学"]
[null,"専門科目D群",null,"○",null,"プログラム基礎と演習",2,null,null,null,null,null,null,null,null,null,null,null,null,null,null,null,null,null,null,null,null,null,null,null,null,null,null,null,null,null,null,null,null,null,null,null,null,null,null,null,"選択科目D群",250222013001,"プログラム基礎と演習"]
[null,null,null,"○",null,"デジタル電子回路",2,null,null,null,null,null,null,null,null,null,null,null,null,null,null,null,null,null,null,null,null,null,null,null,null,null,null,null,null,null,null,null,null,null,null,null,null,null,null,null,null,250222010021,"デジタル電子回路"]
[null,null,null,"○",null,"電　　波　　工　　学",2,null,null,null,null,null,null,null,null,null,null,null,null,null,null,null,null,null,null,null,null,null,null,null,null,null,null,null,null,null,null,null,null,null,null,null,null,null,null,null,null,259752235101,"電　　波　　工　　学"]
[null,null,null,"○",null,"シ　ス　テ　ム　工　学",2,null,null,null,null,null,null,null,null,null,null,null,null,null,null,null,null,null,null,null,null,null,null,null,null,null,null,null,null,null,null,null,null,null,null,null,null,null,null,null,null,259752235110,"シ　ス　テ　ム　工　学"]
[null,null,null,null,"○","LSIシステム設計",2,null,null,null,null,null,null,null,null,null,null,null,null,null,null,null,null,null,null,null,null,null,null,null,null,null,null,null,null,null,null,null,null,null,null,null,null,null,null,null,null,250222010031,"LSIシステム設計"]
[null,null,null,null,"○","光　通　信　工　学",2,null,null,null,null,null,null,null,null,null,null,null,null,null,null,null,null,null,null,null,null,null,null,null,null,null,null,null,null,null,null,null,null,null,null,null,null,null,null,null,null,250222000130,"光　通　信　工　学"]
[null,null,"○",null,null,"電気数学基礎",2,null,null,null,null,null,null,null,null,null,null,null,null,null,null,null,null,null,null,null,null,null,null,null,null,null,null,null,null,null,null,null,null,null,null,null,null,null,null,null,"選択科目E群",250095200002,"電気数学基礎"]
[null,null,"○",null,null,"化　　学　　基　　礎",2,null,null,null,null,null,null,null,null,null,null,null,null,null,null,null,null,null,null,null,null,null,null,null,null,null,null,null,null,null,null,null,null,null,null,null,null,null,null,null,null,250099110002,"化　　学　　基　　礎"]
[null,"選","○",null,null,"地　球　科　学　基　礎",2,null,null,null,null,null,null,null,null,null,null,null,null,null,null,null,null,null,null,null,null,null,null,null,null,null,null,null,null,null,null,null,null,null,null,null,null,null,null,null,null,250299110001,"地　球　科　学　基　礎"]
[null,"択",null,"○",null,"電気電子工学特別講義Ⅰ",1,null,null,null,null,null,null,null,null,null,null,null,null,null,null,null,null,null,null,null,null,null,null,null,null,null,null,null,null,null,null,null,null,null,null,null,null,null,null,null,null,259752246103,"電気電子工学特別講義Ⅰ"]
[null,"科",null,"○",null,"電気電子工学特別講義Ⅱ",1,null,null,null,null,null,null,null,null,null,null,null,null,null,null,null,null,null,null,null,null,null,null,null,null,null,null,null,null,null,null,null,null,null,null,null,null,null,null,null,null,259752246106,"電気電子工学特別講義Ⅱ"]
[null,"目",null,"○",null,"インターンシップ",1,null,null,null,null,null,null,null,null,null,null,null,null,null,null,null,null,null,null,null,null,null,null,null,null,null,null,null,null,null,null,null,null,null,null,null,null,null,null,null,null,250223010041,"インターンシップ"]
[null,"E",null,"○",null,"工　　場　　見　　学",1,null,null,null,null,null,null,null,null,null,null,null,null,null,null,null,null,null,null,null,null,null,null,null,null,null,null,null,null,null,null,null,null,null,null,null,null,null,null,null,null,259752246402,"工　　場　　見　　学"]
[null,"群",null,null,"○","電気電子設計製図",2,null,null,null,null,null,null,null,null,null,null,null,null,null,null,null,null,null,null,null,null,null,null,null,null,null,null,null,null,null,null,null,null,null,null,null,null,null,null,null,null,250222013010,"電気電子設計製図"]
[null,null,null,null,"○","電気法規及び施設管理",1,null,null,null,null,null,null,null,null,null,null,null,null,null,null,null,null,null,null,null,null,null,null,null,null,null,null,null,null,null,null,null,null,null,null,null,null,null,null,null,null,250052219102,"電気法規及び施設管理"]
[null,null,null,null,"○","電　　　波　　　法",1,null,null,null,null,null,null,null,null,null,null,null,null,null,null,null,null,null,null,null,null,null,null,null,null,null,null,null,null,null,null,null,null,null,null,null,null,null,null,null,null,250052219101,"電　　　波　　　法"]
["合計",null,null,null,null,null,null,null,{"$f":"SUM(I42:I75)","v":0},null,{"$f":"SUM(K42:K75)","v":0},null,{"$f":"SUM(M42:M75)","v":0},null,{"$f":"SUM(O42:O75)","v":0},null,{"$f":"SUM(Q42:Q75)","v":0},null,{"$f":"SUM(S42:S75)","v":0},null,{"$f":"SUM(U42:U75)","v":0},null,{"$f":"SUM(W42:W75)","v":0},null,{"$f":"SUM(Y42:Y75)","v":0},null,{"$f":"SUM(AA42:AA75)","v":0},null,{"$f":"SUM(AC42:AC75)","v":0},null,{"$f":"SUM(AE42:AE75)","v":0},null,{"$f":"SUM(AG42:AG75)","v":0},null,{"$f":"SUM(AI42:AI75)","v":0},null,{"$f":"SUM(AK42:AK75)","v":0},null,{"$f":"SUM(AM42:AM75)","v":0},{"$f":"SUM(H76,J76,L76,N76,P76,R76,T76,V76,X76,Z76,AB76,AD76,AF76,AH76,AJ76,AL76)","v":0},26,{"$f":"SUM(I76,K76,M76,O76,Q76,S76,U76,W76,Y76,AA76,AC76,AE76,AG76,AI76,AK76,AM76)","v":0}]
[]
["専門教育科目合計（単位数とGP）",null,null,null,null,null,null,{"$f":"SUM(H13,H40,H76)","v":0},0,0,0,0,0,0,0,0,0,0,0,0,0,0,0,0,0,0,0,0,0,0,0,0,0,0,0,0,0,0,0,{"$f":"SUM(H78,J78,L78,N78,P78,R78,T78,V78,X78,Z78,AB78,AD78,AF78,AH78,AJ78,AL78)","v":0},93,{"$f":"SUM(I78,K78,M78,O78,Q78,S78,U78,W78,Y78,AA78,AC78,AE78,AG78,AI78,AK78,AM78)","v":0}]
["(共通＋専門)教育科目合計（単位数とGP）",null,null,null,null,null,null,{"$f":"'単位修得状況確認表（共通教育科目，外国人留学生）'!H25+H78","v":0},{"$f":"'単位修得状況確認表（共通教育科目，外国人留学生）'!I25+I78","v":0},{"$f":"'単位修得状況確認表（共通教育科目，外国人留学生）'!J25+J78","v":0},{"$f":"'単位修得状況確認表（共通教育科目，外国人留学生）'!K25+K78","v":0},{"$f":"'単位修得状況確認表（共通教育科目，外国人留学生）'!L25+L78","v":0},{"$f":"'単位修得状況確認表（共通教育科目，外国人留学生）'!M25+M78","v":0},{"$f":"'単位修得状況確認表（共通教育科目，外国人留学生）'!N25+N78","v":0},{"$f":"'単位修得状況確認表（共通教育科目，外国人留学生）'!O25+O78","v":0},{"$f":"'単位修得状況確認表（共通教育科目，外国人留学生）'!P25+P78","v":0},{"$f":"'単位修得状況確認表（共通教育科目，外国人留学生）'!Q25+Q78","v":0},{"$f":"'単位修得状況確認表（共通教育科目，外国人留学生）'!R25+R78","v":0},{"$f":"'単位修得状況確認表（共通教育科目，外国人留学生）'!S25+S78","v":0},{"$f":"'単位修得状況確認表（共通教育科目，外国人留学生）'!T25+T78","v":0},{"$f":"'単位修得状況確認表（共通教育科目，外国人留学生）'!U25+U78","v":0},{"$f":"'単位修得状況確認表（共通教育科目，外国人留学生）'!V25+V78","v":0},{"$f":"'単位修得状況確認表（共通教育科目，外国人留学生）'!W25+W78","v":0},{"$f":"'単位修得状況確認表（共通教育科目，外国人留学生）'!X25+X78","v":0},{"$f":"'単位修得状況確認表（共通教育科目，外国人留学生）'!Y25+Y78","v":0},{"$f":"'単位修得状況確認表（共通教育科目，外国人留学生）'!Z25+Z78","v":0},{"$f":"'単位修得状況確認表（共通教育科目，外国人留学生）'!AA25+AA78","v":0},{"$f":"'単位修得状況確認表（共通教育科目，外国人留学生）'!AB25+AB78","v":0},{"$f":"'単位修得状況確認表（共通教育科目，外国人留学生）'!AC25+AC78","v":0},{"$f":"'単位修得状況確認表（共通教育科目，外国人留学生）'!AD25+AD78","v":0},{"$f":"'単位修得状況確認表（共通教育科目，外国人留学生）'!AE25+AE78","v":0},{"$f":"'単位修得状況確認表（共通教育科目，外国人留学生）'!AF25+AF78","v":0},{"$f":"'単位修得状況確認表（共通教育科目，外国人留学生）'!AG25+AG78","v":0},{"$f":"'単位修得状況確認表（共通教育科目，外国人留学生）'!AH25+AH78","v":0},{"$f":"'単位修得状況確認表（共通教育科目，外国人留学生）'!AI25+AI78","v":0},{"$f":"'単位修得状況確認表（共通教育科目，外国人留学生）'!AJ25+AJ78","v":0},{"$f":"'単位修得状況確認表（共通教育科目，外国人留学生）'!AK25+AK78","v":0},{"$f":"'単位修得状況確認表（共通教育科目，外国人留学生）'!AL25+AL78","v":0},{"$f":"'単位修得状況確認表（共通教育科目，外国人留学生）'!AM25+AM78","v":0},{"$f":"SUM(H79,J79,L79,N79,P79,R79,T79,V79,X79,Z79,AB79,AD79,AF79,AH79,AJ79,AL79)","v":0},124,{"$f":"SUM(I79,K79,M79,O79,Q79,S79,U79,W79,Y79,AA79,AC79,AE79,AG79,AI79,AK79,AM79)","v":0}]
["※","「期を増やす」欄により学年を４年間増やすことが可。",null,null,null,null,null,null,null,null,null,null,null,null,null,null,null,null,null,null,null,null,null,null,null,null,null,null,null,null,null,null,null,null,null,null,null,null,null,"累積GPA",null,{"$f":"IF(AN79-AN82>0,AP79/(AN79-AN82-'単位修得状況確認表（共通教育科目，外国人留学生）'!AN28+AN83+'単位修得状況確認表（共通教育科目，外国人留学生）'!AN29-AN84-'単位修得状況確認表（共通教育科目，外国人留学生）'!AN30),\"\")","v":""}]
[]
["①【専門教育科目】評価Pの単位数",null,null,null,null,null,null,null,null,null,null,null,null,null,null,null,null,null,null,null,null,null,null,null,null,null,null,null,null,null,null,null,null,null,null,null,null,null,null,{"$f":"SUM(H82:AM82)","v":0}]
["②【専門教育科目】不合格（評価F）の単位数",null,null,null,null,null,null,null,null,null,null,null,null,null,null,null,null,null,null,null,null,null,null,null,null,null,null,null,null,null,null,null,null,null,null,null,null,null,null,{"$f":"SUM(H83:AM83)","v":0}]
["③【専門教育科目】評価F科目の再履修での修得単位数",null,null,null,null,null,null,null,null,null,null,null,null,null,null,null,null,null,null,null,null,null,null,null,null,null,null,null,null,null,null,null,null,null,null,null,null,null,null,{"$f":"SUM(H84:AM84)","v":0}]

{"sheet":"累積グラフ","index":5,"n_rows":174,"n_cols":8,"rows_kept":174,"cut":false,"hidden":false,"merged":[[65,2,65,3],[3,6,3,7],[3,2,3,3],[3,4,3,5],[34,2,34,3],[34,4,34,5]]}
[]
[null,"共通教育科目（選択科目）"]
[]
[null,null,"初年次教育科目",null,"ｸﾞﾛｰﾊﾞﾙ教育科目",null,"日本語・日本事情科目"]
[null,null,"取得単位数","累積取得単位数","取得単位数","累積取得単位数","取得単位数","累積取得単位数"]
[null,"1年前期終了時",{"$f":"SUM('単位修得状況確認表（共通教育科目，外国人留学生）'!H7:H12)","v":0},{"$f":"SUM(C$6:C6)","v":0},{"$f":"SUM('単位修得状況確認表（共通教育科目，外国人留学生）'!H13:H14)","v":0},{"$f":"SUM(E$6:E6)","v":0},{"$f":"SUM('単位修得状況確認表（共通教育科目，外国人留学生）'!H15:H16)","v":0},{"$f":"SUM(G$6:G6)","v":0}]
[null,"1年後期終了時",{"$f":"SUM('単位修得状況確認表（共通教育科目，外国人留学生）'!J7:J12)","v":0},{"$f":"SUM(C$6:C7)","v":0},{"$f":"SUM('単位修得状況確認表（共通教育科目，外国人留学生）'!J13:J14)","v":0},{"$f":"SUM(E$6:E7)","v":0},{"$f":"SUM('単位修得状況確認表（共通教育科目，外国人留学生）'!J15:J16)","v":0},{"$f":"SUM(G$6:G7)","v":0}]
[null,"2年前期終了時",{"$f":"SUM('単位修得状況確認表（共通教育科目，外国人留学生）'!L7:L12)","v":0},{"$f":"SUM(C$6:C8)","v":0},{"$f":"SUM('単位修得状況確認表（共通教育科目，外国人留学生）'!L13:L14)","v":0},{"$f":"SUM(E$6:E8)","v":0},{"$f":"SUM('単位修得状況確認表（共通教育科目，外国人留学生）'!L15:L16)","v":0},{"$f":"SUM(G$6:G8)","v":0}]
[null,"2年後期終了時",{"$f":"SUM('単位修得状況確認表（共通教育科目，外国人留学生）'!N7:N12)","v":0},{"$f":"SUM(C$6:C9)","v":0},{"$f":"SUM('単位修得状況確認表（共通教育科目，外国人留学生）'!N13:N14)","v":0},{"$f":"SUM(E$6:E9)","v":0},{"$f":"SUM('単位修得状況確認表（共通教育科目，外国人留学生）'!N15:N16)","v":0},{"$f":"SUM(G$6:G9)","v":0}]
[null,"3年前期終了時",{"$f":"SUM('単位修得状況確認表（共通教育科目，外国人留学生）'!P7:P12)","v":0},{"$f":"SUM(C$6:C10)","v":0},{"$f":"SUM('単位修得状況確認表（共通教育科目，外国人留学生）'!P13:P14)","v":0},{"$f":"SUM(E$6:E10)","v":0},{"$f":"SUM('単位修得状況確認表（共通教育科目，外国人留学生）'!P15:P16)","v":0},{"$f":"SUM(G$6:G10)","v":0}]
[null,"3年後期終了時",{"$f":"SUM('単位修得状況確認表（共通教育科目，外国人留学生）'!R7:R12)","v":0},{"$f":"SUM(C$6:C11)","v":0},{"$f":"SUM('単位修得状況確認表（共通教育科目，外国人留学生）'!R13:R14)","v":0},{"$f":"SUM(E$6:E11)","v":0},{"$f":"SUM('単位修得状況確認表（共通教育科目，外国人留学生）'!R15:R16)","v":0},{"$f":"SUM(G$6:G11)","v":0}]
[null,"4年前期終了時",{"$f":"SUM('単位修得状況確認表（共通教育科目，外国人留学生）'!T7:T12)","v":0},{"$f":"SUM(C$6:C12)","v":0},{"$f":"SUM('単位修得状況確認表（共通教育科目，外国人留学生）'!T13:T14)","v":0},{"$f":"SUM(E$6:E12)","v":0},{"$f":"SUM('単位修得状況確認表（共通教育科目，外国人留学生）'!T15:T16)","v":0},{"$f":"SUM(G$6:G12)","v":0}]
[null,"4年後期終了時",{"$f":"SUM('単位修得状況確認表（共通教育科目，外国人留学生）'!V7:V12)","v":0},{"$f":"SUM(C$6:C13)","v":0},{"$f":"SUM('単位修得状況確認表（共通教育科目，外国人留学生）'!V13:V14)","v":0},{"$f":"SUM(E$6:E13)","v":0},{"$f":"SUM('単位修得状況確認表（共通教育科目，外国人留学生）'!V15:V16)","v":0},{"$f":"SUM(G$6:G13)","v":0}]
[]
[]
[]
[]
[]
[]
[]
[]
[]
[]
[]
[]
[]
[]
[]
[]
[]
[]
[]
[null,"共通教育科目（選択必修科目）"]
[]
[null,null,"教養教育科目",null,"教養活用科目"]
[null,null,"取得単位数","累積取得単位数","取得単位数","累積取得単位数"]
[null,"1年前期終了時",{"$f":"SUM('単位修得状況確認表（共通教育科目，外国人留学生）'!H18:H21)","v":0},{"$f":"SUM(C$37:C37)","v":0},{"$f":"SUM('単位修得状況確認表（共通教育科目，外国人留学生）'!H22:H23)","v":0},{"$f":"SUM(E$37:E37)","v":0}]
[null,"1年後期終了時",{"$f":"SUM('単位修得状況確認表（共通教育科目，外国人留学生）'!J18:J21)","v":0},{"$f":"SUM(C$37:C38)","v":0},{"$f":"SUM('単位修得状況確認表（共通教育科目，外国人留学生）'!J22:J23)","v":0},{"$f":"SUM(E$37:E38)","v":0}]
[null,"2年前期終了時",{"$f":"SUM('単位修得状況確認表（共通教育科目，外国人留学生）'!L18:L21)","v":0},{"$f":"SUM(C$37:C39)","v":0},{"$f":"SUM('単位修得状況確認表（共通教育科目，外国人留学生）'!L22:L23)","v":0},{"$f":"SUM(E$37:E39)","v":0}]
[null,"2年後期終了時",{"$f":"SUM('単位修得状況確認表（共通教育科目，外国人留学生）'!N18:N21)","v":0},{"$f":"SUM(C$37:C40)","v":0},{"$f":"SUM('単位修得状況確認表（共通教育科目，外国人留学生）'!N22:N23)","v":0},{"$f":"SUM(E$37:E40)","v":0}]
[null,"3年前期終了時",{"$f":"SUM('単位修得状況確認表（共通教育科目，外国人留学生）'!P18:P21)","v":0},{"$f":"SUM(C$37:C41)","v":0},{"$f":"SUM('単位修得状況確認表（共通教育科目，外国人留学生）'!P22:P23)","v":0},{"$f":"SUM(E$37:E41)","v":0}]
[null,"3年後期終了時",{"$f":"SUM('単位修得状況確認表（共通教育科目，外国人留学生）'!R18:R21)","v":0},{"$f":"SUM(C$37:C42)","v":0},{"$f":"SUM('単位修得状況確認表（共通教育科目，外国人留学生）'!R22:R23)","v":0},{"$f":"SUM(E$37:E42)","v":0}]
[null,"4年前期終了時",{"$f":"SUM('単位修得状況確認表（共通教育科目，外国人留学生）'!T18:T21)","v":0},{"$f":"SUM(C$37:C43)","v":0},{"$f":"SUM('単位修得状況確認表（共通教育科目，外国人留学生）'!T22:T23)","v":0},{"$f":"SUM(E$37:E43)","v":0}]
[null,"4年後期終了時",{"$f":"SUM('単位修得状況確認表（共通教育科目，外国人留学生）'!V18:V21)","v":0},{"$f":"SUM(C$37:C44)","v":0},{"$f":"SUM('単位修得状況確認表（共通教育科目，外国人留学生）'!V22:V23)","v":0},{"$f":"SUM(E$37:E44)","v":0}]
[]
[]
[]
[]
[]
[]
[]
[]
[]
[]
[]
[]
[]
[]
[]
[]
[]
[]
[]
[null,"専門教育科目（基礎教育科目）"]
[]
[null,null,"必修科目"]
[null,null,"取得単位数","累積取得単位数"]
[null,"1年前期終了時",{"$f":"'単位修得状況確認表（専門教育科目）'!H13","v":0},{"$f":"SUM(C$68:C68)","v":0}]
[null,"1年後期終了時",{"$f":"'単位修得状況確認表（専門教育科目）'!J13","v":0},{"$f":"SUM(C$68:C69)","v":0}]
[null,"2年前期終了時",{"$f":"'単位修得状況確認表（専門教育科目）'!L13","v":0},{"$f":"SUM(C$68:C70)","v":0}]
[null,"2年後期終了時",{"$f":"'単位修得状況確認表（専門教育科目）'!N13","v":0},{"$f":"SUM(C$68:C71)","v":0}]
[null,"3年前期終了時",{"$f":"'単位修得状況確認表（専門教育科目）'!P13","v":0},{"$f":"SUM(C$68:C72)","v":0}]
[null,"3年後期終了時",{"$f":"'単位修得状況確認表（専門教育科目）'!R13","v":0},{"$f":"SUM(C$68:C73)","v":0}]
[null,"4年前期終了時",{"$f":"'単位修得状況確認表（専門教育科目）'!T13","v":0},{"$f":"SUM(C$68:C74)","v":0}]
[null,"4年後期終了時",{"$f":"'単位修得状況確認表（専門教育科目）'!V13","v":0},{"$f":"SUM(C$68:C75)","v":0}]
[]
[]
[]
[]
[]
[]
[]
[null,"専門教育科目（必修科目）"]
[]
[null,null,"取得単位数","累積取得単位数"]
[null,"1年前期終了時",{"$f":"'単位修得状況確認表（専門教育科目）'!H40","v":0},{"$f":"SUM(C$86:C86)","v":0}]
[null,"1年後期終了時",{"$f":"'単位修得状況確認表（専門教育科目）'!J40","v":0},{"$f":"SUM(C$86:C87)","v":0}]
[null,"2年前期終了時",{"$f":"'単位修得状況確認表（専門教育科目）'!L40","v":0},{"$f":"SUM(C$86:C88)","v":0}]
[null,"2年後期終了時",{"$f":"'単位修得状況確認表（専門教育科目）'!N40","v":0},{"$f":"SUM(C$86:C89)","v":0}]
[null,"3年前期終了時",{"$f":"'単位修得状況確認表（専門教育科目）'!P40","v":0},{"$f":"SUM(C$86:C90)","v":0}]
[null,"3年後期終了時",{"$f":"'単位修得状況確認表（専門教育科目）'!R40","v":0},{"$f":"SUM(C$86:C91)","v":0}]
[null,"4年前期終了時",{"$f":"'単位修得状況確認表（専門教育科目）'!T40","v":0},{"$f":"SUM(C$86:C92)","v":0}]
[null,"4年後期終了時",{"$f":"'単位修得状況確認表（専門教育科目）'!V40","v":0},{"$f":"SUM(C$86:C93)","v":0}]
[]
[]
[]
[]
[]
[]
[]
[]
[]
[]
[]
[]
[]
[null,"専門教育科目（選択科目）"]
[]
[null,null,"取得単位数","累積取得単位数"]
[null,"1年前期終了時",{"$f":"'単位修得状況確認表（専門教育科目）'!H76","v":0},{"$f":"SUM(C$110:C110)","v":0}]
[null,"1年後期終了時",{"$f":"'単位修得状況確認表（専門教育科目）'!J76","v":0},{"$f":"SUM(C$110:C111)","v":0}]
[null,"2年前期終了時",{"$f":"'単位修得状況確認表（専門教育科目）'!L76","v":0},{"$f":"SUM(C$110:C112)","v":0}]
[null,"2年後期終了時",{"$f":"'単位修得状況確認表（専門教育科目）'!N76","v":0},{"$f":"SUM(C$110:C113)","v":0}]
[null,"3年前期終了時",{"$f":"'単位修得状況確認表（専門教育科目）'!P76","v":0},{"$f":"SUM(C$110:C114)","v":0}]
[null,"3年後期終了時",{"$f":"'単位修得状況確認表（専門教育科目）'!R76","v":0},{"$f":"SUM(C$110:C115)","v":0}]
[null,"4年前期終了時",{"$f":"'単位修得状況確認表（専門教育科目）'!T76","v":0},{"$f":"SUM(C$110:C116)","v":0}]
[null,"4年後期終了時",{"$f":"'単位修得状況確認表（専門教育科目）'!V76","v":0},{"$f":"SUM(C$110:C117)","v":0}]
[]
[]
[]
[]
[]
[]
[]
[]
[]
[]
[]
[]
[]
[]
[]
[]
[]
[]
[]
[null,"累積単位数"]
[]
[null,null,"取得単位数","累積取得単位数"]
[null,"1年前期終了時",{"$f":"SUM(C6,E6,G6,C37,E37,C68,C86,C110)","v":0},{"$f":"SUM(C$140:C140)","v":0}]
[null,"1年後期終了時",{"$f":"SUM(C7,E7,G7,C38,E38,C69,C87,C111)","v":0},{"$f":"SUM(C$140:C141)","v":0}]
[null,"2年前期終了時",0,{"$f":"SUM(C$140:C142)","v":0}]
[null,"2年後期終了時",0,{"$f":"SUM(C$140:C143)","v":0}]
[null,"3年前期終了時",0,{"$f":"SUM(C$140:C144)","v":0}]
[null,"3年後期終了時",0,{"$f":"SUM(C$140:C145)","v":0}]
[null,"4年前期終了時",0,{"$f":"SUM(C$140:C146)","v":0}]
[null,"4年後期終了時",0,{"$f":"SUM(C$140:C147)","v":0}]
[]
[]
[]
[]
[]
[]
[]
[]
[]
[]
[]
[]
[]
[]
[]
[]
[null,"GPA"]
[]
[null,null,"累積GP","累積GPA","GPA累積単位数","累積P","累積F"]
[null,"1年前期終了時",{"$f":"'単位修得状況確認表（共通教育科目，外国人留学生）'!I25+'単位修得状況確認表（専門教育科目）'!I78","v":0},{"$f":"IF(E167=0,\"\",C167/E167)","v":""},{"$f":"D140-F167+G167","v":0},{"$f":"SUM('単位修得状況確認表（共通教育科目，外国人留学生）'!H28,'単位修得状況確認表（専門教育科目）'!H82)","v":0},{"$f":"SUM('単位修得状況確認表（共通教育科目，外国人留学生）'!H29,'単位修得状況確認表（専門教育科目）'!H83)-SUM('単位修得状況確認表（共通教育科目，外国人留学生）'!H30,'単位修得状況確認表（専門教育科目）'!H84)","v":0}]
[null,"1年後期終了時",{"$f":"C167+'単位修得状況確認表（共通教育科目，外国人留学生）'!K25+'単位修得状況確認表（専門教育科目）'!K78","v":0},"",0,{"$f":"SUM(F167,'単位修得状況確認表（共通教育科目，外国人留学生）'!J28,'単位修得状況確認表（専門教育科目）'!J82)","v":0},{"$f":"SUM(G167,'単位修得状況確認表（共通教育科目，外国人留学生）'!J29,'単位修得状況確認表（専門教育科目）'!J83)-SUM('単位修得状況確認表（共通教育科目，外国人留学生）'!J30,'単位修得状況確認表（専門教育科目）'!J84)","v":0}]
[null,"2年前期終了時",{"$f":"C168+'単位修得状況確認表（共通教育科目，外国人留学生）'!M25+'単位修得状況確認表（専門教育科目）'!M78","v":0},"",0,{"$f":"SUM(F168,'単位修得状況確認表（共通教育科目，外国人留学生）'!L28,'単位修得状況確認表（専門教育科目）'!L82)","v":0},{"$f":"SUM(G168,'単位修得状況確認表（共通教育科目，外国人留学生）'!L29,'単位修得状況確認表（専門教育科目）'!L83)-SUM('単位修得状況確認表（共通教育科目，外国人留学生）'!L30,'単位修得状況確認表（専門教育科目）'!L84)","v":0}]
[null,"2年後期終了時",{"$f":"C169+'単位修得状況確認表（共通教育科目，外国人留学生）'!O25+'単位修得状況確認表（専門教育科目）'!O78","v":0},"",0,{"$f":"SUM(F169,'単位修得状況確認表（共通教育科目，外国人留学生）'!N28,'単位修得状況確認表（専門教育科目）'!N82)","v":0},{"$f":"SUM(G169,'単位修得状況確認表（共通教育科目，外国人留学生）'!N29,'単位修得状況確認表（専門教育科目）'!N83)-SUM('単位修得状況確認表（共通教育科目，外国人留学生）'!N30,'単位修得状況確認表（専門教育科目）'!N84)","v":0}]
[null,"3年前期終了時",{"$f":"C170+'単位修得状況確認表（共通教育科目，外国人留学生）'!Q25+'単位修得状況確認表（専門教育科目）'!Q78","v":0},"",0,{"$f":"SUM(F170,'単位修得状況確認表（共通教育科目，外国人留学生）'!P28,'単位修得状況確認表（専門教育科目）'!P82)","v":0},{"$f":"SUM(G170,'単位修得状況確認表（共通教育科目，外国人留学生）'!P29,'単位修得状況確認表（専門教育科目）'!P83)-SUM('単位修得状況確認表（共通教育科目，外国人留学生）'!P30,'単位修得状況確認表（専門教育科目）'!P84)","v":0}]
[null,"3年後期終了時",{"$f":"C171+'単位修得状況確認表（共通教育科目，外国人留学生）'!S25+'単位修得状況確認表（専門教育科目）'!S78","v":0},"",0,{"$f":"SUM(F171,'単位修得状況確認表（共通教育科目，外国人留学生）'!R28,'単位修得状況確認表（専門教育科目）'!R82)","v":0},{"$f":"SUM(G171,'単位修得状況確認表（共通教育科目，外国人留学生）'!R29,'単位修得状況確認表（専門教育科目）'!R83)-SUM('単位修得状況確認表（共通教育科目，外国人留学生）'!R30,'単位修得状況確認表（専門教育科目）'!R84)","v":0}]
[null,"4年前期終了時",{"$f":"C172+'単位修得状況確認表（共通教育科目，外国人留学生）'!U25+'単位修得状況確認表（専門教育科目）'!U78","v":0},"",0,{"$f":"SUM(F172,'単位修得状況確認表（共通教育科目，外国人留学生）'!T28,'単位修得状況確認表（専門教育科目）'!T82)","v":0},{"$f":"SUM(G172,'単位修得状況確認表（共通教育科目，外国人留学生）'!T29,'単位修得状況確認表（専門教育科目）'!T83)-SUM('単位修得状況確認表（共通教育科目，外国人留学生）'!T30,'単位修得状況確認表（専門教育科目）'!T84)","v":0}]
[null,"4年後期終了時",{"$f":"C173+'単位修得状況確認表（共通教育科目，外国人留学生）'!W25+'単位修得状況確認表（専門教育科目）'!W78","v":0},"",0,{"$f":"SUM(F173,'単位修得状況確認表（共通教育科目，外国人留学生）'!V28,'単位修得状況確認表（専門教育科目）'!V82)","v":0},{"$f":"SUM(G173,'単位修得状況確認表（共通教育科目，外国人留学生）'!V29,'単位修得状況確認表（専門教育科目）'!V83)-SUM('単位修得状況確認表（共通教育科目，外国人留学生）'!V30,'単位修得状況確認表（専門教育科目）'!V84)","v":0}]